bitfinex-derivatives/quotes_BTCF0:USTF0_20250805
["timestamp","ask_amount","ask_price","bid_price","bid_amount"]
[1754408838168,0.6857191,112900.0,112890.0,0.82347636]
[1754408838468,0.6857191,112900.0,112890.0,1.00066116]
[1754408839558,0.6857191,112900.0,112890.0,0.81448]
[1754408839758,0.7134991,112900.0,112890.0,0.81448]
[1754408840162,0.7134991,112900.0,112890.0,0.82326673]
[1754408840365,0.7134991,112900.0,112890.0,0.81448]
[1754408841367,0.7143691,112900.0,112890.0,0.73757]
[1754408841568,0.7143691,112900.0,112890.0,0.81387]
[1754408842861,0.7143691,112900.0,112890.0,0.82288983]
[1754408843266,0.7143691,112900.0,112890.0,0.17999]
[1754408843472,1.24149274,112900.0,112890.0,0.005]
[1754408843673,1.57014274,112900.0,112890.0,0.005]
[1754408843867,1.74729474,112900.0,112890.0,0.63872]
[1754408844461,1.1915211,112900.0,112890.0,0.63872]
[1754408844667,1.74729474,112900.0,112890.0,0.63872]
[1754408844968,1.74729474,112900.0,112890.0,0.65755]
[1754408845167,1.74729474,112900.0,112890.0,0.63872]
[1754408845569,1.75596195,112900.0,112890.0,0.63872]
[1754408846977,1.45596195,112900.0,112890.0,0.63872]
[1754408847378,1.45596195,112900.0,112890.0,0.63772]
[1754408847572,1.45596195,112900.0,112890.0,0.66625]
[1754408847969,1.45596195,112900.0,112890.0,0.63772]
[1754408848378,1.45596195,112900.0,112890.0,0.63572]
[1754408849168,1.45596195,112900.0,112890.0,0.002]
[1754408849370,0.3505905,112880.0,112870.0,1.25349]
[1754408849572,1.0721905,112880.0,112870.0,1.88709]
[1754408849773,1.62796414,112880.0,112870.0,1.88709]
[1754408849972,1.62796414,112880.0,112870.0,1.93472]
[1754408850168,1.62796414,112880.0,112870.0,1.32979]
[1754408850377,1.62796414,112880.0,112870.0,1.96439]
[1754408851072,1.62796414,112880.0,112870.0,2.1416062]
[1754408851271,1.62796414,112880.0,112870.0,1.96439]
[1754408851474,1.62896414,112880.0,112870.0,1.96635]
[1754408852779,1.62896414,112880.0,112870.0,1.89005]
[1754408853279,1.62896414,112880.0,112870.0,1.93768]
[1754408853486,1.62896414,112880.0,112870.0,1.96635]
[1754408853873,1.60031414,112880.0,112870.0,2.1435662]
[1754408854079,0.9191605,112880.0,112870.0,2.1435662]
[1754408854379,0.9181605,112880.0,112870.0,2.1415662]
[1754408854571,1.0255105,112880.0,112870.0,2.1435662]
[1754408854772,1.60993414,112880.0,112870.0,1.86144]
[1754408854976,1.60993414,112880.0,112870.0,1.86044]
[1754408855176,1.60993414,112880.0,112870.0,1.9366]
[1754408855976,2.42059814,112880.0,112870.0,1e-07]
[1754408856171,2.72059814,112880.0,112870.0,1e-07]
[1754408856577,0.3506062,112870.0,112860.0,0.7571]
[1754408856885,1.26717984,112870.0,112860.0,0.7571]
[1754408857076,1.26717984,112870.0,112860.0,0.6808]
[1754408857278,1.26717984,112870.0,112860.0,0.66197]
[1754408857675,1.26717984,112870.0,112860.0,0.63344]
[1754408858180,1.44637984,112870.0,112860.0,0.63344]
[1754408858381,1.44637984,112870.0,112860.0,0.63444]
[1754408858577,0.3506375,112850.0,112840.0,0.09499]
[1754408858784,1.62801114,112850.0,112840.0,0.72843]
[1754408858974,1.62801114,112850.0,112840.0,0.78699]
[1754408859180,1.62801114,112850.0,112840.0,0.80723]
[1754408859478,1.62801114,112850.0,112840.0,0.04736]
[1754408859679,1.62801114,112850.0,112840.0,0.66193]
[1754408859888,1.62801114,112850.0,112840.0,0.6334]
[1754408860382,1.62801114,112850.0,112840.0,0.66193]
[1754408860578,1.62801114,112850.0,112840.0,0.6334]
[1754408861183,1.62901114,112850.0,112840.0,0.6334]
[1754408861684,1.62901114,112850.0,112840.0,0.66193]
[1754408861883,1.63201114,112850.0,112840.0,0.66193]
[1754408862182,1.64072213,112850.0,112840.0,0.66193]
[1754408862586,1.64072213,112850.0,112840.0,0.77852]
[1754408862787,1.64072213,112850.0,112840.0,0.80719]
[1754408863082,0.4107049,112830.0,112820.0,0.12616]
[1754408863279,1.80533164,112830.0,112820.0,0.80719]
[1754408863685,1.80533164,112830.0,112820.0,0.17379]
[1754408863885,1.80533164,112830.0,112820.0,0.80719]
[1754408864085,1.80533164,112830.0,112800.0,1.50048945]
[1754408864086,0.1773104,112810.0,112800.0,1.56098805]
[1754408864281,0.5381104,112810.0,112800.0,2.19434805]
[1754408865089,0.5381104,112810.0,112800.0,2.26449123]
[1754408865590,1.09388404,112810.0,112800.0,1.40257318]
[1754408865786,1.16809404,112810.0,112800.0,2.21325938]
[1754408865979,1.16809404,112810.0,112800.0,2.22215504]
[1754408866183,1.13816404,112810.0,112800.0,2.22211504]
[1754408866789,1.13816404,112810.0,112800.0,2.21321938]
[1754408866790,0.5843904,112810.0,112800.0,2.21321938]
[1754408866990,1.14016404,112810.0,112800.0,2.21321938]
[1754408867393,1.14016404,112810.0,112800.0,2.03589318]
[1754408867688,1.14016404,112810.0,112800.0,2.21321938]
[1754408867895,1.14016404,112810.0,112800.0,1.32627318]
[1754408868193,1.17009404,112810.0,112800.0,2.03593318]
[1754408868490,1.17009404,112810.0,112800.0,2.21325938]
[1754408868685,1.17009404,112810.0,112800.0,2.03593318]
[1754408869087,1.24062404,112810.0,112800.0,2.03393318]
[1754408869287,1.26927404,112810.0,112800.0,1.40057318]
[1754408869493,1.26927404,112810.0,112800.0,2.03385318]
[1754408869889,1.26927404,112810.0,112800.0,1.40057318]
[1754408870085,1.24062404,112810.0,112800.0,2.21117928]
[1754408870286,0.6848504,112810.0,112800.0,2.03385318]
[1754408870487,1.24062404,112810.0,112800.0,2.03385318]
[1754408870982,1.26927404,112810.0,112800.0,2.03385318]
[1754408871188,1.26927404,112810.0,112800.0,2.03485318]
[1754408871686,1.26927404,112810.0,112800.0,2.21217928]
[1754408871881,1.24062404,112810.0,112800.0,2.21117928]
[1754408872086,1.23962404,112810.0,112800.0,2.21117928]
[1754408872487,0.1783104,112810.0,112800.0,2.21117928]
[1754408872788,0.6267326,112830.0,112820.0,0.2443347]
[1754408872994,0.6267326,112830.0,112820.0,0.9776347]
[1754408874388,0.6277326,112830.0,112820.0,0.9776347]
[1754408874795,0.6277326,112830.0,112820.0,0.80034]
[1754408875190,0.6287326,112830.0,112820.0,0.9776347]
[1754408875995,0.6267326,112830.0,112820.0,0.9776347]
[1754408876198,0.6277326,112830.0,112820.0,0.9786347]
[1754408877399,0.6277326,112830.0,112820.0,0.80134]
[1754408877598,0.7518026,112830.0,112820.0,0.80134]
[1754408877797,0.7701026,112830.0,112820.0,0.80134]
[1754408878491,0.7985626,112830.0,112820.0,0.80134]
[1754408878996,0.7701026,112830.0,112820.0,0.9786347]
[1754408879604,0.7701026,112830.0,112820.0,0.80134]
[1754408879996,0.6277326,112830.0,112820.0,0.9786346]
[1754408880393,0.3618,112830.0,112820.0,1.53440824]
[1754408880700,0.6710029,112850.0,112840.0,0.2443033]
[1754408880896,0.69584648,112850.0,112840.0,0.9773633]
[1754408881102,0.33504648,112850.0,112840.0,0.9773633]
[1754408881299,0.3102029,112850.0,112840.0,0.9773633]
[1754408881504,0.6709771,112860.0,112850.0,0.3443076]
[1754408881802,0.69583069,112860.0,112850.0,0.3443076]
[1754408881997,0.2215549,112860.0,112850.0,0.3443076]
[1754408882498,0.6266416,112870.0,112860.0,0.2442719]
[1754408882697,0.6266416,112870.0,112860.0,0.80006]
[1754408883002,0.7974716,112870.0,112860.0,0.80006]
[1754408883402,0.7974716,112870.0,112860.0,0.9772919]
[1754408883602,0.6266416,112870.0,112860.0,0.98628982]
[1754408883806,0.450991,112880.0,112860.0,0.98628982]
[1754408883807,0.6266121,112880.0,112870.0,0.3442762]
[1754408884004,0.3608,112880.0,112870.0,0.3442762]
[1754408884205,0.3608,112890.0,112880.0,0.3442605]
[1754408884404,0.56259264,112890.0,112880.0,0.9772205]
[1754408884605,0.65666264,112890.0,112880.0,0.9772205]
[1754408884900,0.6620548,112890.0,112880.0,0.80002]
[1754408885095,0.7088148,112890.0,112880.0,0.80002]
[1754408885602,0.6813548,112890.0,112880.0,0.9782205]
[1754408885800,0.38089,112890.0,112880.0,0.9782205]
[1754408886103,0.5389847,112890.0,112880.0,0.9782205]
[1754408886696,0.5389847,112890.0,112880.0,1.04955653]
[1754408887400,0.3618,112890.0,112880.0,1.04955653]
[1754408887606,0.3618,112890.0,112880.0,1.60533017]
[1754408887805,0.001,112890.0,112880.0,1.60533017]
[1754408888103,0.001,112890.0,112880.0,2.26613017]
[1754408889008,0.6763246,112910.0,112900.0,0.2442091]
[1754408889300,0.6763246,112910.0,112900.0,0.9769891]
[1754408889503,0.3608,112920.0,112910.0,0.1771534]
[1754408889699,0.12407,112920.0,112910.0,0.3442134]
[1754408889896,0.01909,112920.0,112910.0,0.3442134]
[1754408890600,0.5822146,112930.0,112920.0,0.2884477]
[1754408890805,0.6803037,112930.0,112920.0,0.9768377]
[1754408891005,0.7087637,112930.0,112920.0,0.7997]
[1754408891209,0.7087637,112930.0,112920.0,0.16706]
[1754408891401,0.7087637,112930.0,112920.0,0.77123]
[1754408892302,0.7107637,112930.0,112920.0,0.9777977]
[1754408892697,0.6823037,112930.0,112920.0,0.9777977]
[1754408893504,0.7107637,112930.0,112920.0,0.9777977]
[1754408893803,0.6823037,112930.0,112920.0,0.98667769]
[1754408893996,0.682292,112930.0,112920.0,0.98667769]
[1754408894601,1.26652564,112930.0,112920.0,0.9777977]
[1754408895708,0.710752,112930.0,112920.0,0.9777977]
[1754408896407,0.682292,112930.0,112920.0,0.9777977]
[1754408896608,0.539922,112930.0,112920.0,0.9777977]
[1754408896804,0.559012,112930.0,112920.0,0.3451977]
[1754408897006,0.710752,112930.0,112920.0,0.9776377]
[1754408897806,0.682292,112930.0,112920.0,0.9776377]
[1754408898209,0.45778,112930.0,112920.0,0.9776377]
[1754408898505,0.3628,112930.0,112920.0,0.9776377]
[1754408899602,0.002,112930.0,112920.0,0.9776377]
[1754408902004,0.002,112930.0,112920.0,1.3384377]
[1754408902309,0.002,112930.0,112920.0,1.89421134]
[1754408902508,0.6264503,112950.0,112940.0,0.2437564]
[1754408902697,0.6264503,112950.0,112940.0,0.9793864]
[1754408902903,0.7692903,112950.0,112940.0,0.9793864]
[1754408903099,0.7972803,112950.0,112940.0,0.9793864]
[1754408903510,0.7992803,112950.0,112940.0,0.80228]
[1754408903700,1.35505394,112950.0,112920.0,0.0745828]
[1754408904008,0.319962,112930.0,112920.0,0.3924493]
[1754408904201,1.28361884,112940.0,112930.0,0.243772]
[1754408904403,0.7973052,112940.0,112930.0,0.17004]
[1754408904603,0.7973052,112940.0,112930.0,0.347162]
[1754408904915,1.35307884,112940.0,112930.0,0.66022]
[1754408905106,1.32508884,112940.0,112930.0,0.902072]
[1754408905406,1.32708884,112940.0,112930.0,0.8032]
[1754408905602,1.35507884,112940.0,112930.0,0.885862]
[1754408905807,1.35507884,112940.0,112930.0,0.75477]
[1754408906109,1.35507884,112940.0,112930.0,0.961192]
[1754408906309,0.8003052,112940.0,112930.0,0.8032]
[1754408907009,1.35607884,112940.0,112930.0,0.931892]
[1754408907207,0.8003052,112940.0,112930.0,0.980322]
[1754408908010,0.7439152,112940.0,112930.0,0.980322]
[1754408908206,0.244406,112940.0,112930.0,0.980322]
[1754408908411,0.003,112940.0,112930.0,0.980322]
[1754408909308,0.003,112940.0,112930.0,1.53609564]
[1754408909510,0.003,112940.0,112930.0,1.341122]
[1754408910907,0.003,112940.0,112930.0,1.89689564]
[1754408911108,0.001,112940.0,112930.0,1.89689564]
[1754408911312,0.40578,112960.0,112950.0,0.3471306]
[1754408911508,0.3608,112960.0,112950.0,0.9791306]
[1754408911907,0.662075,112960.0,112950.0,0.9791306]
[1754408912108,0.708705,112960.0,112950.0,0.77274]
[1754408912309,0.708705,112960.0,112950.0,0.9498306]
[1754408912514,0.708705,112960.0,112950.0,0.9791306]
[1754408912712,1.26847864,112960.0,112950.0,0.9801306]
[1754408912908,1.26847864,112960.0,112950.0,0.9508306]
[1754408913313,1.26847864,112960.0,112950.0,0.9801306]
[1754408913509,1.27047864,112960.0,112950.0,0.633]
[1754408913715,1.27047864,112960.0,112950.0,0.73131314]
[1754408913915,1.29456109,112960.0,112950.0,0.63296]
[1754408914616,1.29456109,112960.0,112950.0,0.8381107]
[1754408916620,1.29456109,112960.0,112950.0,0.63296]
[1754408916822,1.65536109,112960.0,112950.0,0.63296]
[1754408917022,1.65536109,112960.0,112950.0,0.8100506]
[1754408917319,1.09958745,112960.0,112950.0,0.8100506]
[1754408917623,1.65536109,112960.0,112950.0,0.8381106]
[1754408917822,1.63127864,112960.0,112950.0,0.8841406]
[1754408918020,1.65540903,112960.0,112950.0,0.9321406]
[1754408918225,1.65540903,112960.0,112950.0,1.00211732]
[1754408918525,1.65540903,112960.0,112950.0,0.97281732]
[1754408919218,1.65540903,112960.0,112950.0,0.97473732]
[1754408919423,1.62741903,112960.0,112950.0,1.05006732]
[1754408919723,1.65540903,112960.0,112950.0,1.05006732]
[1754408920135,0.39093039,112960.0,112950.0,1.05006732]
[1754408920428,0.03013039,112960.0,112950.0,2.44370496]
[1754408920631,0.03013039,112960.0,112950.0,3.66842496]
[1754408920835,0.006,112960.0,112950.0,3.66842496]
[1754408921331,0.006,112960.0,112950.0,2.75165132]
[1754408921531,0.006,112960.0,112950.0,2.27458732]
[1754408922329,0.006,112960.0,112950.0,2.63538732]
[1754408925628,0.5821184,112980.0,112970.0,0.2437093]
[1754408925829,0.60626705,112980.0,112970.0,0.9787793]
[1754408926429,0.69965705,112980.0,112970.0,0.9787793]
[1754408927234,0.73046705,112980.0,112970.0,0.80172]
[1754408927426,0.77709705,112980.0,112970.0,0.80172]
[1754408927628,0.78009705,112980.0,112970.0,0.77242]
[1754408927929,0.1970693,112970.0,112960.0,0.0293]
[1754408928135,0.90366294,112970.0,112960.0,0.978715]
[1754408928333,0.3198993,112970.0,112960.0,0.978715]
[1754408928534,0.5886793,112970.0,112960.0,0.98769351]
[1754408929235,0.5916793,112970.0,112960.0,0.98869351]
[1754408929436,0.1800593,112970.0,112960.0,0.35709351]
[1754408929739,0.003,112970.0,112960.0,0.98865351]
[1754408931229,0.003,112970.0,112960.0,0.35709351]
[1754408931434,1.18939294,112970.0,112960.0,0.81164851]
[1754408931733,1.25889294,112970.0,112960.0,0.69917]
[1754408931939,1.25889294,112970.0,112960.0,0.76631]
[1754408932234,1.25889294,112970.0,112960.0,0.65122]
[1754408932436,1.28247909,112970.0,112960.0,0.95236812]
[1754408932636,1.28247909,112970.0,112960.0,0.98177812]
[1754408933332,0.72670545,112970.0,112960.0,0.98177812]
[1754408933733,0.72670545,112970.0,112960.0,0.79577]
[1754408933934,0.72670545,112970.0,112960.0,0.04516]
[1754408934134,1.58247909,112970.0,112960.0,0.001]
[1754408934333,1.75952709,112970.0,112960.0,0.001]
[1754408934542,0.2421664,112940.0,112930.0,1.32103]
[1754408934733,1.25594004,112940.0,112930.0,1.95255]
[1754408934934,1.25594004,112940.0,112930.0,1.32103]
[1754408935134,1.25594004,112940.0,112930.0,0.02546]
[1754408935343,1.25594004,112940.0,112930.0,0.74606]
[1754408935534,1.25594004,112940.0,112930.0,0.77606]
[1754408935734,1.25594004,112940.0,112930.0,0.79406]
[1754408936341,1.25694004,112940.0,112930.0,0.7971]
[1754408936641,1.25694004,112940.0,112930.0,0.63452]
[1754408937037,1.25694004,112940.0,112930.0,0.003]
[1754408937338,0.2743377,112920.0,112910.0,0.07090427]
[1754408937534,0.04676,112900.0,112890.0,0.07349]
[1754408937736,1.61680274,112900.0,112890.0,0.74669]
[1754408937940,1.61680274,112900.0,112890.0,0.04803]
[1754408938143,0.2488148,112890.0,112880.0,1.4728505]
[1754408938442,0.6351848,112890.0,112880.0,2.1298305]
[1754408938836,0.5819148,112890.0,112880.0,2.1298305]
[1754408939046,0.1771848,112890.0,112880.0,2.13849855]
[1754408939741,0.5379848,112890.0,112880.0,2.13849855]
[1754408940043,0.5379848,112890.0,112880.0,2.20811583]
[1754408940238,0.5379848,112890.0,112880.0,2.03399533]
[1754408940443,0.5379848,112890.0,112880.0,2.21119583]
[1754408941337,0.5389848,112890.0,112880.0,2.21519583]
[1754408941538,0.1781848,112890.0,112880.0,2.21527583]
[1754408942437,0.001,112890.0,112880.0,2.21527583]
[1754408942837,0.1781848,112890.0,112880.0,2.21527583]
[1754408944137,0.5389848,112890.0,112880.0,1.40639533]
[1754408944342,0.6756748,112890.0,112880.0,2.02936728]
[1754408944642,0.7012448,112890.0,112880.0,2.02936728]
[1754408945239,0.6756748,112890.0,112880.0,2.02936728]
[1754408945640,0.6756748,112890.0,112880.0,1.39772728]
[1754408945835,1.15981844,112890.0,112880.0,1.30117728]
[1754408946036,1.25701844,112890.0,112880.0,2.00003728]
[1754408946233,0.6756748,112890.0,112880.0,1.39772728]
[1754408946439,0.7012448,112890.0,112880.0,1.93289728]
[1754408946641,1.25701844,112890.0,112880.0,1.93289728]
[1754408946842,1.25701844,112890.0,112880.0,2.02944728]
[1754408947346,0.7012448,112890.0,112880.0,2.02944728]
[1754408947731,0.7012448,112890.0,112880.0,2.02244728]
[1754408947732,0.6030448,112890.0,112880.0,2.02244728]
[1754408947946,0.5572848,112890.0,112880.0,2.02444728]
[1754408948242,0.6012148,112890.0,112880.0,2.02444728]
[1754408948445,0.6289148,112890.0,112880.0,2.02444728]
[1754408948946,0.6289148,112890.0,112880.0,2.02544728]
[1754408949338,0.6289148,112890.0,112880.0,2.20264778]
[1754408949539,0.5389848,112890.0,112880.0,2.20264778]
[1754408949740,0.1781848,112890.0,112880.0,2.20364778]
[1754408949933,0.5389848,112890.0,112880.0,2.20364778]
[1754408950140,0.1781848,112890.0,112880.0,2.20364778]
[1754408950334,0.1781847,112890.0,112880.0,2.20364778]
[1754408950532,0.001,112890.0,112880.0,2.20364778]
[1754408950743,0.1781848,112890.0,112880.0,2.20364778]
[1754408951147,0.1781848,112890.0,112880.0,2.20264778]
[1754408951540,0.1781848,112890.0,112880.0,2.56344778]
[1754408951740,0.3608,112900.0,112890.0,0.3397648]
[1754408952044,0.5379691,112900.0,112890.0,0.3397648]
[1754408952946,0.1771691,112900.0,112890.0,0.3397648]
[1754408953641,0.6708388,112910.0,112900.0,0.177169]
[1754408953849,0.6708388,112910.0,112900.0,0.971549]
[1754408954152,0.6265471,112910.0,112900.0,0.971549]
[1754408954646,0.6704771,112910.0,112900.0,0.971549]
[1754408954843,0.6714771,112910.0,112900.0,0.975549]
[1754408955547,0.6275471,112910.0,112900.0,0.975549]
[1754408955740,0.6275471,112910.0,112900.0,0.80038]
[1754408956054,0.6991771,112910.0,112900.0,0.977549]
[1754408956246,0.001,112910.0,112900.0,1.53332264]
[1754408956445,0.6264946,112930.0,112920.0,0.1771377]
[1754408956646,0.2656946,112930.0,112920.0,0.9043377]
[1754408956847,0.2656946,112930.0,112920.0,0.9714777]
[1754408958352,0.2666946,112930.0,112920.0,0.9724777]
[1754408959852,0.6274946,112930.0,112920.0,0.9724777]
[1754408960244,0.2666946,112930.0,112920.0,0.9724777]
[1754408960554,0.7641846,112930.0,112920.0,0.79534]
[1754408960850,0.7897546,112930.0,112920.0,0.76593]
[1754408961053,0.7897546,112930.0,112920.0,0.79534]
[1754408961458,0.7897546,112930.0,112920.0,0.80410474]
[1754408961649,0.6457946,112930.0,112920.0,0.98124244]
[1754408962354,0.6866746,112930.0,112920.0,0.98124244]
[1754408963254,0.6274946,112930.0,112920.0,0.98124244]
[1754408963448,0.2666946,112930.0,112920.0,0.98124244]
[1754408963649,0.2224118,112930.0,112920.0,0.98124244]
[1754408963954,0.1781308,112930.0,112920.0,0.98124244]
[1754408965351,0.6959508,112930.0,112920.0,0.98124234]
[1754408965855,0.3351508,112930.0,112920.0,0.98124234]
[1754408966656,0.6959508,112930.0,112920.0,0.98124244]
[1754408966955,0.3351508,112930.0,112920.0,0.98124244]
[1754408967457,0.6959508,112930.0,112920.0,0.98124244]
[1754408967652,0.6959508,112930.0,112920.0,0.80398474]
[1754408967857,1.25172444,112930.0,112920.0,0.80398474]
[1754408968750,0.6959508,112930.0,112920.0,0.80398474]
[1754408970452,0.6959508,112930.0,112920.0,0.73289474]
[1754408970662,0.6959508,112930.0,112920.0,0.80214474]
[1754408971158,0.6959508,112930.0,112920.0,0.65067]
[1754408971357,1.25172444,112930.0,112920.0,0.65067]
[1754408971657,1.25172444,112930.0,112920.0,0.6775]
[1754408971858,1.25172444,112930.0,112920.0,0.6785]
[1754408972253,1.25072444,112930.0,112920.0,0.6765]
[1754408972450,1.25172444,112930.0,112920.0,0.6795]
[1754408973159,1.25172444,112930.0,112920.0,0.68851657]
[1754408973355,0.6959508,112930.0,112920.0,0.68851657]
[1754408973553,0.6959508,112930.0,112920.0,0.72964657]
[1754408974052,0.6959508,112930.0,112920.0,0.73064657]
[1754408974649,0.6959508,112930.0,112920.0,0.73056657]
[1754408974862,1.25172444,112930.0,112920.0,0.66260657]
[1754408975260,1.25172444,112930.0,112920.0,0.68943657]
[1754408975560,1.25172444,112930.0,112920.0,0.73056657]
[1754408975955,1.25172444,112930.0,112920.0,0.75831657]
[1754408976151,0.6959508,112930.0,112920.0,0.78643657]
[1754408976354,1.25172444,112930.0,112920.0,0.78643657]
[1754408976758,1.17071865,112930.0,112920.0,0.77742]
[1754408977055,1.17071865,112930.0,112920.0,0.11774]
[1754408977260,1.17071865,112930.0,112920.0,0.004]
[1754408977460,1.17071865,112930.0,112920.0,0.63552]
[1754408979759,1.17071865,112930.0,112920.0,0.66235]
[1754408979962,1.17071865,112930.0,112920.0,0.9738677]
[1754408980460,0.6692208,112930.0,112920.0,0.9738677]
[1754408981260,0.6692208,112930.0,112920.0,0.79673]
[1754408981557,0.6959508,112930.0,112920.0,0.9738676]
[1754408982063,0.6692208,112930.0,112920.0,0.9738676]
[1754408982963,0.6428308,112930.0,112920.0,0.9738676]
[1754408983165,0.6692208,112930.0,112920.0,0.9738676]
[1754408983573,0.6692208,112930.0,112920.0,0.79673]
[1754408983862,1.17071865,112930.0,112920.0,0.79673]
[1754408984056,1.17071865,112930.0,112920.0,0.004]
[1754408984262,1.17071865,112930.0,112920.0,0.63548]
[1754408984659,1.17963368,112930.0,112920.0,0.63548]
[1754408985567,1.17963368,112930.0,112920.0,0.63448]
[1754408986167,0.3074277,112920.0,112910.0,1.22492]
[1754408986468,1.6444934,112920.0,112910.0,1.8564]
[1754408986656,1.25161694,112920.0,112910.0,1.8564]
[1754408986861,0.2401891,112900.0,112890.0,0.13200413]
[1754408987064,1.25164834,112900.0,112890.0,0.76344413]
[1754408987259,0.1771848,112890.0,112880.0,0.09644728]
[1754408987464,1.25166404,112890.0,112880.0,0.74602728]
[1754408987759,1.25166404,112890.0,112880.0,0.70105728]
[1754408989268,1.25366404,112890.0,112880.0,0.70805728]
[1754408989465,1.25366404,112890.0,112880.0,0.6159085]
[1754408989769,0.3342205,112880.0,112870.0,0.63148]
[1754408989964,0.2222019,112860.0,112850.0,0.11422]
[1754408990168,1.61251114,112860.0,112850.0,0.11422]
[1754408990365,1.61251114,112860.0,112850.0,0.7457]
[1754408990573,1.0558519,112860.0,112850.0,0.77345]
[1754408990767,1.61251114,112860.0,112850.0,0.9699376]
[1754408991168,1.61251114,112860.0,112850.0,0.84104394]
[1754408991976,1.61451114,112860.0,112850.0,1.04726154]
[1754408992371,1.61451114,112860.0,112850.0,0.87001394]
[1754408992874,1.61451114,112860.0,112850.0,1.04726154]
[1754408993672,1.0578519,112860.0,112850.0,1.04726154]
[1754408993873,1.0578519,112860.0,112850.0,0.87001394]
[1754408994072,1.0578519,112860.0,112850.0,0.70895394]
[1754408994578,1.0578519,112860.0,112850.0,0.77682394]
[1754408994974,1.61451114,112860.0,112850.0,1.04412154]
[1754408995477,1.61451114,112860.0,112850.0,0.86687394]
[1754408996170,1.61451114,112860.0,112850.0,0.82107394]
[1754408996470,1.61451114,112860.0,112850.0,0.79332394]
[1754408996664,1.61451114,112860.0,112850.0,0.83890394]
[1754408996870,1.0578519,112860.0,112850.0,1.04412144]
[1754408997075,1.61451114,112860.0,112850.0,1.04412144]
[1754408997271,1.61451114,112860.0,112850.0,1.04012144]
[1754408997470,1.61651114,112860.0,112850.0,1.04012144]
[1754408997875,1.61651114,112860.0,112850.0,0.86287394]
[1754408998077,1.61951114,112860.0,112850.0,0.86187394]
[1754408998376,1.61951114,112860.0,112850.0,0.74609394]
[1754408998875,1.61951114,112860.0,112850.0,0.70395394]
[1754408999080,0.3347976,112850.0,112840.0,0.02564]
[1754408999275,1.25225684,112850.0,112840.0,0.02564]
[1754408999470,0.3348133,112840.0,112830.0,1.29299]
[1754408999670,1.25227254,112840.0,112830.0,1.95256]
[1754408999978,1.15645254,112840.0,112830.0,1.85672]
[1754409000274,1.25227254,112840.0,112830.0,1.95256]
[1754409000475,1.25227254,112840.0,112830.0,1.88236]
[1754409000679,1.25227254,112840.0,112830.0,1.92890339]
[1754409000970,1.25227254,112840.0,112830.0,1.95454339]
[1754409001170,1.25227254,112840.0,112830.0,1.95554339]
[1754409001363,1.25227254,112840.0,112830.0,1.85772]
[1754409002174,1.25227254,112840.0,112830.0,1.92559]
[1754409003571,0.6956133,112840.0,112830.0,1.92559]
[1754409003775,1.25227254,112840.0,112830.0,1.95356]
[1754409004370,0.6704933,112840.0,112830.0,2.20209647]
[1754409005173,0.5558633,112840.0,112830.0,2.20209647]
[1754409005376,0.5380633,112840.0,112830.0,2.20209647]
[1754409005572,0.6740033,112850.0,112830.0,2.55165115]
[1754409005876,0.626688,112850.0,112840.0,0.29482913]
[1754409006682,0.631688,112850.0,112840.0,0.29482913]
[1754409006981,0.005,112850.0,112840.0,0.29482913]
[1754409007375,0.62664,112870.0,112860.0,0.2308419]
[1754409007579,0.62664,112870.0,112860.0,0.9668319]
[1754409008173,0.68858,112870.0,112860.0,0.7896]
[1754409008367,1.34084924,112870.0,112860.0,0.7896]
[1754409008868,1.34084924,112870.0,112860.0,0.12995]
[1754409009073,1.34084924,112870.0,112860.0,0.76159]
[1754409009475,0.78819,112870.0,112860.0,0.76159]
[1754409009675,1.34484924,112870.0,112860.0,0.76159]
[1754409009877,1.34984924,112870.0,112860.0,0.79056]
[1754409010978,0.79319,112870.0,112860.0,0.79056]
[1754409011479,1.34984924,112870.0,112860.0,0.79056]
[1754409011882,0.79319,112870.0,112860.0,0.79056]
[1754409012081,0.63564,112870.0,112860.0,0.79056]
[1754409012382,0.79319,112870.0,112860.0,0.79056]
[1754409013686,0.76807,112870.0,112860.0,0.79056]
[1754409014684,0.79319,112870.0,112860.0,0.79056]
[1754409015693,0.65344,112870.0,112860.0,0.79056]
[1754409015893,0.65344,112870.0,112860.0,0.9677919]
[1754409016093,0.65344,112870.0,112860.0,0.79056]
[1754409016388,1.34984924,112870.0,112860.0,0.79056]
[1754409017889,1.34984924,112870.0,112860.0,0.72036]
[1754409018087,0.79319,112870.0,112860.0,0.64914]
[1754409018284,0.79319,112870.0,112860.0,0.63264]
[1754409018489,1.34984924,112870.0,112860.0,0.63264]
[1754409018682,1.34984924,112870.0,112860.0,0.001]
[1754409018996,1.52704924,112870.0,112860.0,0.63256]
[1754409019792,1.37297577,112870.0,112860.0,0.63256]
[1754409020689,1.82704924,112870.0,112860.0,0.63156]
[1754409021094,0.3348133,112840.0,112830.0,1.36339191]
[1754409021293,0.6956133,112840.0,112830.0,1.99491191]
[1754409021488,0.6956133,112840.0,112830.0,1.29319191]
[1754409021489,1.25227254,112840.0,112830.0,1.29319191]
[1754409021691,1.26126811,112840.0,112830.0,1.89907191]
[1754409021885,1.26126811,112840.0,112830.0,1.19629444]
[1754409022091,1.26126811,112840.0,112830.0,0.63152]
[1754409022492,1.26226811,112840.0,112830.0,0.63152]
[1754409022697,1.26326811,112840.0,112830.0,0.63352]
[1754409023997,1.26226811,112840.0,112830.0,0.63352]
[1754409024199,1.26826811,112840.0,112830.0,0.63252]
[1754409024695,1.26826811,112840.0,112830.0,0.65892]
[1754409025001,1.25927254,112840.0,112830.0,0.74776]
[1754409025195,1.25927254,112840.0,112830.0,0.7933]
[1754409027807,1.25927254,112840.0,112830.0,0.970579]
[1754409028001,1.25927254,112840.0,112830.0,0.7933]
[1754409028201,0.7026133,112840.0,112830.0,0.970579]
[1754409028407,1.25927254,112840.0,112830.0,0.7933]
[1754409028909,1.25927254,112840.0,112830.0,0.63252]
[1754409030104,0.7026133,112840.0,112830.0,0.65892]
[1754409030409,1.25927254,112840.0,112830.0,0.65892]
[1754409030706,1.25927254,112840.0,112830.0,0.0274]
[1754409031006,1.25927254,112840.0,112830.0,0.659]
[1754409031208,1.25927254,112840.0,112830.0,0.6326]
[1754409031705,0.5628633,112840.0,112830.0,0.970659]
[1754409031909,0.5450633,112840.0,112830.0,0.970659]
[1754409032797,1.10172254,112840.0,112830.0,0.79338]
[1754409032998,1.19543254,112840.0,112830.0,0.001]
[1754409033206,0.1772947,112820.0,112810.0,0.09791]
[1754409033406,1.61296394,112820.0,112810.0,0.7468]
[1754409033903,1.61296394,112820.0,112810.0,0.79234]
[1754409034306,1.61296394,112820.0,112810.0,0.86276033]
[1754409034505,1.61396394,112820.0,112810.0,0.86276033]